[Event "Titled Tuesday Blitz August 23 Late 2022"]
[White "Vovk, Orest"]
[Black "Fawzy, Adham"]
[WhiteFideId "14113490"]
[BlackFideId "10613129"]
[WhiteElo "2203"]
[BlackElo "2541"]
[Result "0-1"]
[Round "06"]
[TimeControl "180+1"]
[Date "2022.08.23"]
[WhiteClock "0:00:01"]
[BlackClock "0:00:26"]

1. h4 {[%clk 0:03:00]}  c5 {[%clk 0:02:59]} 2. h5 {[%clk 0:03:01]}  Nc6 {[%clk 0:02:59]} 3. g4 {[%clk 0:02:59]}  d5 {[%clk 0:02:59]} 4. g5 {[%clk 0:02:57]}  h6 {[%clk 0:02:59]} 5. g6 {[%clk 0:02:56]}  fxg6 {[%clk 0:02:56]} 6. hxg6 {[%clk 0:02:57]}  Bf5 {[%clk 0:02:56]} 7. c4 {[%clk 0:02:54]}  dxc4 {[%clk 0:02:55]} 8. Bg2 {[%clk 0:02:49]}  Nb4 {[%clk 0:02:44]} 9. Bxb7 {[%clk 0:02:25]}  Rb8 {[%clk 0:02:27]} 10. Bg2 {[%clk 0:02:18]}  Qd6 {[%clk 0:02:06]} 11. Na3 {[%clk 0:02:05]}  Qxg6 {[%clk 0:02:06]} 12. Qa4+ {[%clk 0:01:58]}  Kf7 {[%clk 0:01:39]} 13. Kf1 {[%clk 0:01:41]}  Be4 {[%clk 0:01:27]} 14. Nf3 {[%clk 0:01:36]}  Qe6 {[%clk 0:01:16]} 15. Rh5 {[%clk 0:01:01]}  g5 {[%clk 0:00:54]} 16. Qxa7 {[%clk 0:00:34]}  Rc8 {[%clk 0:00:54]} 17. Bh3 {[%clk 0:00:09]}  Bf5 {[%clk 0:00:24]} 18. Bxf5 {[%clk 0:00:03]}  Qxf5 {[%clk 0:00:25]} 19. Nxg5+ {[%clk 0:00:03]}  Kg6 {[%clk 0:00:26]} 20. e4 {[%clk 0:00:01]}  Qg4 {[%clk 0:00:26]} 0-1


[Site "https://www.chess.com"]

[Event "Titled Tuesday Blitz August 23 Late 2022"]
[White "Wirig, Anthony"]
[Black "Nasuta, Grzegorz"]
[WhiteFideId "615013"]
[BlackFideId "1141686"]
[WhiteElo "2474"]
[BlackElo "2354"]
[Result "1-0"]
[Round "06"]
[TimeControl "180+1"]
[Date "2022.08.23"]
[WhiteClock "0:00:15"]
[BlackClock "0:00:01"]

1. d4 {[%clk 0:03:00]}  d5 {[%clk 0:01:52]} 2. Nf3 {[%clk 0:02:59]}  Nf6 {[%clk 0:01:52]} 3. c4 {[%clk 0:02:59]}  c6 {[%clk 0:01:51]} 4. Qc2 {[%clk 0:02:59]}  dxc4 {[%clk 0:01:51]} 5. e4 {[%clk 0:02:59]}  b5 {[%clk 0:01:47]} 6. b3 {[%clk 0:02:59]}  cxb3 {[%clk 0:01:47]} 7. axb3 {[%clk 0:03:00]}  e6 {[%clk 0:01:45]} 8. Bd2 {[%clk 0:03:00]}  a5 {[%clk 0:01:43]} 9. Bd3 {[%clk 0:02:57]}  Bb7 {[%clk 0:01:42]} 10. O-O {[%clk 0:02:49]}  Be7 {[%clk 0:01:39]} 11. Nc3 {[%clk 0:02:39]}  Na6 {[%clk 0:01:36]} 12. e5 {[%clk 0:02:29]}  Nb4 {[%clk 0:01:35]} 13. exf6 {[%clk 0:02:30]}  Nxc2 {[%clk 0:01:26]} 14. fxe7 {[%clk 0:02:30]}  Qxe7 {[%clk 0:01:23]} 15. Bxc2 {[%clk 0:02:30]}  O-O {[%clk 0:01:22]} 16. Ne4 {[%clk 0:02:26]}  c5 {[%clk 0:01:02]} 17. dxc5 {[%clk 0:02:23]}  f5 {[%clk 0:01:02]} 18. Nd6 {[%clk 0:02:16]}  Bxf3 {[%clk 0:01:02]} 19. gxf3 {[%clk 0:02:17]}  Qc7 {[%clk 0:00:55]} 20. b4 {[%clk 0:02:09]}  axb4 {[%clk 0:00:46]} 21. Bxb4 {[%clk 0:02:10]}  Qc6 {[%clk 0:00:42]} 22. Kg2 {[%clk 0:02:03]}  Rf6 {[%clk 0:00:37]} 23. Rxa8+ {[%clk 0:01:44]}  Qxa8 {[%clk 0:00:38]} 24. Bd1 {[%clk 0:01:44]}  Rg6+ {[%clk 0:00:34]} 25. Kh1 {[%clk 0:01:43]}  Rg4 {[%clk 0:00:33]} 26. Bc3 {[%clk 0:01:13]}  b4 {[%clk 0:00:22]} 27. Be5 {[%clk 0:01:06]}  b3 {[%clk 0:00:23]} 28. h3 {[%clk 0:00:59]}  Ra4 {[%clk 0:00:17]} 29. Bxb3 {[%clk 0:00:53]}  Qxf3+ {[%clk 0:00:16]} 30. Kh2 {[%clk 0:00:54]}  Qxb3 {[%clk 0:00:15]} 31. Rc1 {[%clk 0:00:42]}  Qd5 {[%clk 0:00:11]} 32. Bg3 {[%clk 0:00:35]}  f4 {[%clk 0:00:11]} 33. Bh4 {[%clk 0:00:35]}  Ra6 {[%clk 0:00:04]} 34. Nc8 {[%clk 0:00:27]}  Kf7 {[%clk 0:00:03]} 35. Nb6 {[%clk 0:00:23]}  Qd2 {[%clk 0:00:02]} 36. Rg1 {[%clk 0:00:15]}  h6 {[%clk 0:00:01]} 37. Nc4 {[%clk 0:00:15]} 1-0


[Site "https://www.chess.com"]

[Event "Titled Tuesday Blitz August 23 Late 2022"]
[White "Aghasiyev, Kamal"]
[Black "Hansen, Eric"]
[WhiteFideId "13402854"]
[BlackFideId "2606771"]
[WhiteElo "2210"]
[BlackElo "2568"]
[Result "1-0"]
[Round "07"]
[TimeControl "180+1"]
[Date "2022.08.23"]
[WhiteClock "0:00:34"]
[BlackClock "0:00:01"]

1. d4 {[%clk 0:02:59]}  Nf6 {[%clk 0:03:00]} 2. c4 {[%clk 0:02:58]}  e6 {[%clk 0:02:59]} 3. Nf3 {[%clk 0:02:58]}  Bb4+ {[%clk 0:02:59]} 4. Bd2 {[%clk 0:02:57]}  Be7 {[%clk 0:02:59]} 5. g3 {[%clk 0:02:56]}  d5 {[%clk 0:02:55]} 6. Qc2 {[%clk 0:02:53]}  Nbd7 {[%clk 0:02:54]} 7. Bg2 {[%clk 0:02:53]}  O-O {[%clk 0:02:53]} 8. O-O {[%clk 0:02:52]}  c6 {[%clk 0:02:54]} 9. Bg5 {[%clk 0:02:44]}  h6 {[%clk 0:02:51]} 10. Bxf6 {[%clk 0:02:42]}  Nxf6 {[%clk 0:02:51]} 11. Nbd2 {[%clk 0:02:43]}  b6 {[%clk 0:02:51]} 12. Ne5 {[%clk 0:02:40]}  Bb7 {[%clk 0:02:52]} 13. Rfd1 {[%clk 0:02:41]}  Rc8 {[%clk 0:02:52]} 14. Qa4 {[%clk 0:02:40]}  a6 {[%clk 0:02:47]} 15. Qb3 {[%clk 0:02:34]}  a5 {[%clk 0:02:41]} 16. Rac1 {[%clk 0:02:30]}  Ba6 {[%clk 0:02:40]} 17. cxd5 {[%clk 0:02:25]}  cxd5 {[%clk 0:02:37]} 18. Nc6 {[%clk 0:02:25]}  Qc7 {[%clk 0:02:37]} 19. e4 {[%clk 0:02:15]}  dxe4 {[%clk 0:02:15]} 20. Nxe4 {[%clk 0:02:14]}  Nd5 {[%clk 0:01:57]} 21. Bf1 {[%clk 0:02:00]}  Bxf1 {[%clk 0:01:45]} 22. Rxf1 {[%clk 0:01:58]}  Qd7 {[%clk 0:01:42]} 23. Nxe7+ {[%clk 0:01:46]}  Qxe7 {[%clk 0:01:40]} 24. Nc3 {[%clk 0:01:46]}  Nxc3 {[%clk 0:01:29]} 25. Rxc3 {[%clk 0:01:37]}  Qd6 {[%clk 0:01:28]} 26. Rfc1 {[%clk 0:01:33]}  Rxc3 {[%clk 0:01:29]} 27. bxc3 {[%clk 0:01:31]}  Rc8 {[%clk 0:01:29]} 28. a4 {[%clk 0:01:25]}  Rc6 {[%clk 0:01:26]} 29. Qb5 {[%clk 0:01:22]}  g6 {[%clk 0:01:21]} 30. c4 {[%clk 0:01:21]}  Rc8 {[%clk 0:01:08]} 31. c5 {[%clk 0:01:19]}  Qxd4 {[%clk 0:01:03]} 32. c6 {[%clk 0:01:08]}  Qd2 {[%clk 0:00:57]} 33. Rc4 {[%clk 0:01:01]}  Qd1+ {[%clk 0:00:57]} 34. Kg2 {[%clk 0:00:59]}  Qd5+ {[%clk 0:00:58]} 35. Kg1 {[%clk 0:00:55]}  h5 {[%clk 0:00:58]} 36. h4 {[%clk 0:00:51]}  Kf8 {[%clk 0:00:36]} 37. Qa6 {[%clk 0:00:48]}  Rc7 {[%clk 0:00:16]} 38. Qxb6 {[%clk 0:00:44]}  Qd6 {[%clk 0:00:02]} 39. Rd4 {[%clk 0:00:44]}  Qe5 {[%clk 0:00:02]} 40. Rd7 {[%clk 0:00:36]}  Qe1+ {[%clk 0:00:02]} 41. Kh2 {[%clk 0:00:35]}  Rxc6 {[%clk 0:00:01]} 42. Qxc6 {[%clk 0:00:34]} 1-0


[Site "https://www.chess.com"]

[Event "Titled Tuesday Blitz August 23 Late 2022"]
[White "Bacrot, Etienne"]
[Black "Lewicki, Miroslaw"]
[WhiteFideId "605506"]
[BlackFideId "1113380"]
[WhiteElo "2673"]
[BlackElo "2204"]
[Result "1-0"]
[Round "07"]
[TimeControl "180+1"]
[Date "2022.08.23"]
[WhiteClock "0:00:07"]
[BlackClock "0:00:02"]

1. e4 {[%clk 0:03:00]}  c5 {[%clk 0:02:54]} 2. Nf3 {[%clk 0:03:00]}  d6 {[%clk 0:02:54]} 3. Bb5+ {[%clk 0:03:01]}  Bd7 {[%clk 0:02:54]} 4. Bxd7+ {[%clk 0:03:00]}  Qxd7 {[%clk 0:02:53]} 5. O-O {[%clk 0:02:58]}  g6 {[%clk 0:02:53]} 6. c3 {[%clk 0:02:55]}  Bg7 {[%clk 0:02:47]} 7. d4 {[%clk 0:02:55]}  Nf6 {[%clk 0:02:31]} 8. Re1 {[%clk 0:02:52]}  O-O {[%clk 0:02:30]} 9. Bg5 {[%clk 0:02:36]}  cxd4 {[%clk 0:02:11]} 10. cxd4 {[%clk 0:02:36]}  Nc6 {[%clk 0:02:11]} 11. Nc3 {[%clk 0:02:32]}  h6 {[%clk 0:02:10]} 12. Bf4 {[%clk 0:02:26]}  g5 {[%clk 0:02:07]} 13. Be3 {[%clk 0:02:25]}  Ng4 {[%clk 0:01:59]} 14. Bc1 {[%clk 0:02:24]}  f5 {[%clk 0:01:48]} 15. h3 {[%clk 0:01:57]}  fxe4 {[%clk 0:01:46]} 16. Nxe4 {[%clk 0:01:52]}  Nf6 {[%clk 0:01:46]} 17. Ng3 {[%clk 0:01:21]}  d5 {[%clk 0:01:23]} 18. Bd2 {[%clk 0:01:14]}  e6 {[%clk 0:01:07]} 19. Bc3 {[%clk 0:01:13]}  Qf7 {[%clk 0:01:03]} 20. Qd3 {[%clk 0:01:12]}  Nd7 {[%clk 0:01:00]} 21. Re2 {[%clk 0:01:09]}  Rae8 {[%clk 0:01:00]} 22. Rae1 {[%clk 0:01:08]}  Nb6 {[%clk 0:00:58]} 23. b3 {[%clk 0:01:06]}  Nc8 {[%clk 0:00:55]} 24. Bb2 {[%clk 0:00:58]}  Kh8 {[%clk 0:00:48]} 25. Ba3 {[%clk 0:00:49]}  Rg8 {[%clk 0:00:48]} 26. Re3 {[%clk 0:00:33]}  Bf8 {[%clk 0:00:36]} 27. Bb2 {[%clk 0:00:30]}  Bb4 {[%clk 0:00:30]} 28. R1e2 {[%clk 0:00:28]}  Bd6 {[%clk 0:00:28]} 29. Ne5 {[%clk 0:00:28]}  Bxe5 {[%clk 0:00:23]} 30. dxe5 {[%clk 0:00:28]}  Qh7 {[%clk 0:00:19]} 31. Qd1 {[%clk 0:00:21]}  Qg6 {[%clk 0:00:11]} 32. Rf3 {[%clk 0:00:20]}  Rgf8 {[%clk 0:00:10]} 33. Rf6 {[%clk 0:00:18]}  Rxf6 {[%clk 0:00:07]} 34. exf6 {[%clk 0:00:19]}  e5 {[%clk 0:00:08]} 35. Qxd5 {[%clk 0:00:16]}  Qxf6 {[%clk 0:00:08]} 36. Ne4 {[%clk 0:00:13]}  Qd8 {[%clk 0:00:03]} 37. Qxd8 {[%clk 0:00:11]}  Rxd8 {[%clk 0:00:03]} 38. Nc5 {[%clk 0:00:11]}  b6 {[%clk 0:00:02]} 39. Ne4 {[%clk 0:00:10]}  Rd1+ {[%clk 0:00:02]} 40. Kh2 {[%clk 0:00:10]}  Kg8 {[%clk 0:00:03]} 41. Kg3 {[%clk 0:00:11]}  Kf7 {[%clk 0:00:03]} 42. Kg4 {[%clk 0:00:11]}  Kg6 {[%clk 0:00:03]} 43. Kg3 {[%clk 0:00:11]}  h5 {[%clk 0:00:04]} 44. Nd2 {[%clk 0:00:10]}  N8e7 {[%clk 0:00:04]} 45. Nc4 {[%clk 0:00:10]}  Nf5+ {[%clk 0:00:04]} 46. Kh2 {[%clk 0:00:10]}  e4 {[%clk 0:00:01]} 47. Rxe4 {[%clk 0:00:10]}  Nce7 {[%clk 0:00:02]} 48. Re6+ {[%clk 0:00:10]}  Kf7 {[%clk 0:00:02]} 49. Rf6+ {[%clk 0:00:10]}  Ke8 {[%clk 0:00:03]} 50. Re6 {[%clk 0:00:09]}  Kf7 {[%clk 0:00:03]} 51. Rf6+ {[%clk 0:00:09]}  Ke8 {[%clk 0:00:03]} 52. Be5 {[%clk 0:00:08]}  Rf1 {[%clk 0:00:03]} 53. f3 {[%clk 0:00:08]}  Rf2 {[%clk 0:00:03]} 54. a4 {[%clk 0:00:08]}  a6 {[%clk 0:00:03]} 55. Nd6+ {[%clk 0:00:07]}  Kd7 {[%clk 0:00:02]} 56. Nxf5 {[%clk 0:00:07]}  Nxf5 {[%clk 0:00:02]} 57. Rxf5 {[%clk 0:00:07]} 1-0


[Site "https://www.chess.com"]

[Event "Titled Tuesday Blitz August 23 Late 2022"]
[White "Carlsen, Magnus"]
[Black "Bluebaum, Matthias"]
[WhiteFideId "1503014"]
[BlackFideId "24651516"]
[WhiteElo "2830"]
[BlackElo "2603"]
[Result "1-0"]
[Round "07"]
[TimeControl "180+1"]
[Date "2022.08.23"]
[WhiteClock "0:00:52"]
[BlackClock "0:00:03"]

1. b4 {[%clk 0:03:00]}  e5 {[%clk 0:02:57]} 2. Bb2 {[%clk 0:02:54]}  Bxb4 {[%clk 0:02:56]} 3. Bxe5 {[%clk 0:02:54]}  Nf6 {[%clk 0:02:57]} 4. c3 {[%clk 0:02:53]}  Ba5 {[%clk 0:02:56]} 5. g3 {[%clk 0:02:50]}  O-O {[%clk 0:02:51]} 6. Bxf6 {[%clk 0:02:50]}  Qxf6 {[%clk 0:02:50]} 7. Bg2 {[%clk 0:02:50]}  Rd8 {[%clk 0:02:33]} 8. e3 {[%clk 0:02:50]}  d5 {[%clk 0:02:33]} 9. Ne2 {[%clk 0:02:50]}  c6 {[%clk 0:02:31]} 10. O-O {[%clk 0:02:49]}  Bf5 {[%clk 0:02:30]} 11. d4 {[%clk 0:02:46]}  Nd7 {[%clk 0:02:31]} 12. Nd2 {[%clk 0:02:46]}  Bd3 {[%clk 0:02:23]} 13. Rc1 {[%clk 0:02:45]}  Ba6 {[%clk 0:01:44]} 14. Re1 {[%clk 0:02:39]}  Re8 {[%clk 0:01:41]} 15. Nf4 {[%clk 0:02:38]}  Qd8 {[%clk 0:01:22]} 16. e4 {[%clk 0:02:25]}  dxe4 {[%clk 0:01:21]} 17. Nxe4 {[%clk 0:02:26]}  Bc7 {[%clk 0:01:17]} 18. Nd3 {[%clk 0:02:20]}  Bc4 {[%clk 0:00:55]} 19. Qd2 {[%clk 0:02:13]}  Nf6 {[%clk 0:00:42]} 20. Nxf6+ {[%clk 0:02:08]}  Qxf6 {[%clk 0:00:43]} 21. Nc5 {[%clk 0:02:08]}  b6 {[%clk 0:00:34]} 22. Rxe8+ {[%clk 0:01:53]}  Rxe8 {[%clk 0:00:34]} 23. Re1 {[%clk 0:01:54]}  Rxe1+ {[%clk 0:00:25]} 24. Qxe1 {[%clk 0:01:55]}  Qd8 {[%clk 0:00:13]} 25. Nb3 {[%clk 0:01:44]}  Bd5 {[%clk 0:00:12]} 26. Bxd5 {[%clk 0:01:44]}  cxd5 {[%clk 0:00:12]} 27. Qe2 {[%clk 0:01:41]}  Qd7 {[%clk 0:00:12]} 28. Qa6 {[%clk 0:01:28]}  Bd6 {[%clk 0:00:12]} 29. Nd2 {[%clk 0:01:27]}  g6 {[%clk 0:00:11]} 30. Nf1 {[%clk 0:01:27]}  Qc7 {[%clk 0:00:10]} 31. Qd3 {[%clk 0:01:23]}  Qc4 {[%clk 0:00:11]} 32. Qd2 {[%clk 0:01:21]}  Qb5 {[%clk 0:00:10]} 33. Qc2 {[%clk 0:01:12]}  Kg7 {[%clk 0:00:08]} 34. Ne3 {[%clk 0:01:11]}  a5 {[%clk 0:00:08]} 35. a4 {[%clk 0:01:09]}  Qc6 {[%clk 0:00:08]} 36. Qb3 {[%clk 0:01:10]}  Qc8 {[%clk 0:00:01]} 37. Qxb6 {[%clk 0:01:07]}  Bf8 {[%clk 0:00:01]} 38. Qxa5 {[%clk 0:01:03]}  Qb8 {[%clk 0:00:01]} 39. Qxd5 {[%clk 0:01:03]}  Qb1+ {[%clk 0:00:01]} 40. Kg2 {[%clk 0:01:03]}  Qa1 {[%clk 0:00:02]} 41. Qe5+ {[%clk 0:01:03]}  Kg8 {[%clk 0:00:02]} 42. Nd5 {[%clk 0:01:03]}  Bg7 {[%clk 0:00:03]} 43. Ne7+ {[%clk 0:00:55]}  Kf8 {[%clk 0:00:03]} 44. Qd6 {[%clk 0:00:54]}  Qxa4 {[%clk 0:00:02]} 45. Nxg6+ {[%clk 0:00:51]}  Kg8 {[%clk 0:00:02]} 46. Qd8+ {[%clk 0:00:51]}  Bf8 {[%clk 0:00:03]} 47. Qxf8# {[%clk 0:00:52]} 1-0


[Site "https://www.chess.com"]

[Event "Titled Tuesday Blitz August 23 Late 2022"]
[White "Chigaev, Maksim"]
[Black "Theodorou, Nikolas"]
[WhiteFideId "4108116"]
[BlackFideId "4262875"]
[WhiteElo "2487"]
[BlackElo "2484"]
[Result "1-0"]
[Round "07"]
[TimeControl "180+1"]
[Date "2022.08.23"]
[WhiteClock "0:00:07"]
[BlackClock "0:00:08"]

1. e4 {[%clk 0:03:00]}  c5 {[%clk 0:03:00]} 2. Nf3 {[%clk 0:03:00]}  Nc6 {[%clk 0:03:00]} 3. Bb5 {[%clk 0:02:58]}  e6 {[%clk 0:03:01]} 4. c3 {[%clk 0:02:58]}  Nge7 {[%clk 0:02:57]} 5. d4 {[%clk 0:02:58]}  cxd4 {[%clk 0:02:48]} 6. cxd4 {[%clk 0:02:59]}  d5 {[%clk 0:02:48]} 7. e5 {[%clk 0:02:59]}  Bd7 {[%clk 0:02:46]} 8. Nc3 {[%clk 0:02:59]}  Rc8 {[%clk 0:02:45]} 9. O-O {[%clk 0:02:38]}  Nf5 {[%clk 0:02:41]} 10. g3 {[%clk 0:02:13]}  Qb6 {[%clk 0:02:38]} 11. Bxc6 {[%clk 0:02:13]}  Bxc6 {[%clk 0:02:37]} 12. g4 {[%clk 0:02:12]}  Ne7 {[%clk 0:02:36]} 13. h4 {[%clk 0:02:04]}  h5 {[%clk 0:02:30]} 14. gxh5 {[%clk 0:02:04]}  Rxh5 {[%clk 0:02:29]} 15. Ne2 {[%clk 0:01:52]}  Bb5 {[%clk 0:02:14]} 16. Ng3 {[%clk 0:01:53]}  Bxf1 {[%clk 0:01:57]} 17. Nxh5 {[%clk 0:01:50]}  Bh3 {[%clk 0:01:58]} 18. Ng5 {[%clk 0:01:44]}  Bf5 {[%clk 0:01:58]} 19. Ng3 {[%clk 0:01:44]}  Bc2 {[%clk 0:01:53]} 20. Qf3 {[%clk 0:01:23]}  Nf5 {[%clk 0:01:45]} 21. Be3 {[%clk 0:01:23]}  Be7 {[%clk 0:01:27]} 22. Rc1 {[%clk 0:01:19]}  Kd7 {[%clk 0:00:58]} 23. Rxc2 {[%clk 0:01:15]}  Nxh4 {[%clk 0:00:38]} 24. Qxf7 {[%clk 0:00:43]}  Rxc2 {[%clk 0:00:36]} 25. Nh7 {[%clk 0:00:41]}  Qd8 {[%clk 0:00:26]} 26. Qxg7 {[%clk 0:00:19]}  Kc6 {[%clk 0:00:22]} 27. Nf6 {[%clk 0:00:15]}  Qf8 {[%clk 0:00:19]} 28. Qg4 {[%clk 0:00:14]}  Nf5 {[%clk 0:00:11]} 29. Nxf5 {[%clk 0:00:12]}  Bxf6 {[%clk 0:00:12]} 30. exf6 {[%clk 0:00:03]}  exf5 {[%clk 0:00:12]} 31. Qg7 {[%clk 0:00:03]}  Qe8 {[%clk 0:00:01]} 32. f7 {[%clk 0:00:03]}  Qe4 {[%clk 0:00:02]} 33. f8=Q {[%clk 0:00:03]}  f4 {[%clk 0:00:02]} 34. Qff6+ {[%clk 0:00:03]}  Kb5 {[%clk 0:00:02]} 35. Qxf4 {[%clk 0:00:03]}  Kc4 {[%clk 0:00:03]} 36. Qxe4 {[%clk 0:00:03]}  dxe4 {[%clk 0:00:04]} 37. Qc7+ {[%clk 0:00:04]}  Kd3 {[%clk 0:00:05]} 38. Qxc2+ {[%clk 0:00:04]}  Kxc2 {[%clk 0:00:06]} 39. d5 {[%clk 0:00:05]}  Kd3 {[%clk 0:00:07]} 40. d6 {[%clk 0:00:06]}  Ke2 {[%clk 0:00:07]} 41. d7 {[%clk 0:00:06]}  b5 {[%clk 0:00:08]} 42. d8=Q {[%clk 0:00:07]} 1-0


[Site "https://www.chess.com"]

[Event "Titled Tuesday Blitz August 23 Late 2022"]
[White "Cruz, Cristhian"]
[Black "Tari, Aryan"]
[WhiteFideId "3801969"]
[BlackFideId "1510045"]
[WhiteElo "2497"]
[BlackElo "2612"]
[Result "1-0"]
[Round "07"]
[TimeControl "180+1"]
[Date "2022.08.23"]
[WhiteClock "0:00:14"]
[BlackClock "0:00:03"]

1. d4 {[%clk 0:03:00]}  d5 {[%clk 0:02:50]} 2. c4 {[%clk 0:02:59]}  e6 {[%clk 0:02:50]} 3. Nc3 {[%clk 0:02:59]}  c5 {[%clk 0:02:50]} 4. cxd5 {[%clk 0:02:56]}  cxd4 {[%clk 0:02:50]} 5. Qxd4 {[%clk 0:02:52]}  Nc6 {[%clk 0:02:50]} 6. Qd1 {[%clk 0:02:52]}  exd5 {[%clk 0:02:50]} 7. Qxd5 {[%clk 0:02:52]}  Bd6 {[%clk 0:02:50]} 8. Nf3 {[%clk 0:02:41]}  Nf6 {[%clk 0:02:49]} 9. Qd1 {[%clk 0:02:37]}  O-O {[%clk 0:02:49]} 10. e3 {[%clk 0:02:37]}  Qe7 {[%clk 0:02:49]} 11. Be2 {[%clk 0:02:37]}  Rd8 {[%clk 0:02:48]} 12. Qa4 {[%clk 0:02:37]}  Bd7 {[%clk 0:02:12]} 13. Qh4 {[%clk 0:02:34]}  Ne5 {[%clk 0:02:07]} 14. Nxe5 {[%clk 0:02:29]}  Bxe5 {[%clk 0:02:07]} 15. O-O {[%clk 0:02:27]}  Rac8 {[%clk 0:02:04]} 16. Bd2 {[%clk 0:02:20]}  Bf5 {[%clk 0:02:02]} 17. Be1 {[%clk 0:02:13]}  a6 {[%clk 0:02:02]} 18. a3 {[%clk 0:02:11]}  b5 {[%clk 0:02:02]} 19. h3 {[%clk 0:02:07]}  h6 {[%clk 0:02:01]} 20. Rd1 {[%clk 0:01:57]}  Bb8 {[%clk 0:02:01]} 21. Rxd8+ {[%clk 0:01:37]}  Rxd8 {[%clk 0:02:02]} 22. Bf3 {[%clk 0:01:12]}  Qe5 {[%clk 0:01:21]} 23. g3 {[%clk 0:01:08]}  Qe6 {[%clk 0:01:21]} 24. Kg2 {[%clk 0:01:02]}  Be5 {[%clk 0:01:18]} 25. e4 {[%clk 0:00:49]}  Bh7 {[%clk 0:01:17]} 26. Nd5 {[%clk 0:00:48]}  Rc8 {[%clk 0:01:03]} 27. Bc3 {[%clk 0:00:41]}  Rc4 {[%clk 0:01:02]} 28. Bxe5 {[%clk 0:00:39]}  Qxe5 {[%clk 0:00:57]} 29. Nxf6+ {[%clk 0:00:36]}  Qxf6 {[%clk 0:00:44]} 30. Qxf6 {[%clk 0:00:35]}  gxf6 {[%clk 0:00:45]} 31. Rd1 {[%clk 0:00:34]}  Bxe4 {[%clk 0:00:39]} 32. Bxe4 {[%clk 0:00:33]}  Rxe4 {[%clk 0:00:40]} 33. Rd6 {[%clk 0:00:32]}  a5 {[%clk 0:00:20]} 34. Rb6 {[%clk 0:00:21]}  b4 {[%clk 0:00:16]} 35. axb4 {[%clk 0:00:18]}  axb4 {[%clk 0:00:16]} 36. Rxf6 {[%clk 0:00:14]}  Kg7 {[%clk 0:00:08]} 37. Rf4 {[%clk 0:00:14]}  Rxf4 {[%clk 0:00:06]} 38. gxf4 {[%clk 0:00:15]}  Kf6 {[%clk 0:00:04]} 39. Kf3 {[%clk 0:00:15]}  Kg6 {[%clk 0:00:03]} 40. Ke4 {[%clk 0:00:15]}  Kh5 {[%clk 0:00:04]} 41. Kf5 {[%clk 0:00:14]}  Kh4 {[%clk 0:00:04]} 42. Kf6 {[%clk 0:00:14]}  Kxh3 {[%clk 0:00:05]} 43. Kxf7 {[%clk 0:00:14]}  Kg4 {[%clk 0:00:05]} 44. Kg6 {[%clk 0:00:14]}  h5 {[%clk 0:00:05]} 45. f5 {[%clk 0:00:14]}  h4 {[%clk 0:00:06]} 46. f6 {[%clk 0:00:14]}  h3 {[%clk 0:00:07]} 47. f7 {[%clk 0:00:14]}  h2 {[%clk 0:00:07]} 48. f8=Q {[%clk 0:00:14]}  h1=Q {[%clk 0:00:08]} 49. Qf5+ {[%clk 0:00:14]}  Kh4 {[%clk 0:00:03]} 50. Qg5+ {[%clk 0:00:14]}  Kh3 {[%clk 0:00:03]} 51. Qg3# {[%clk 0:00:14]} 1-0


[Site "https://www.chess.com"]

[Event "Titled Tuesday Blitz August 23 Late 2022"]
[White "Deac, Bogdan-Daniel"]
[Black "Lenderman, Aleksandr"]
[WhiteFideId "1226380"]
[BlackFideId "2021285"]
[WhiteElo "2648"]
[BlackElo "2607"]
[Result "1/2-1/2"]
[Round "07"]
[TimeControl "180+1"]
[Date "2022.08.23"]
[WhiteClock "0:00:38"]
[BlackClock "0:01:58"]

1. d4 {[%clk 0:03:00]}  e6 {[%clk 0:02:59]} 2. Nf3 {[%clk 0:03:00]}  Nf6 {[%clk 0:02:55]} 3. c4 {[%clk 0:03:00]}  a6 {[%clk 0:02:56]} 4. Nc3 {[%clk 0:02:59]}  d5 {[%clk 0:02:56]} 5. e3 {[%clk 0:02:55]}  dxc4 {[%clk 0:02:55]} 6. Bxc4 {[%clk 0:02:55]}  c5 {[%clk 0:02:52]} 7. O-O {[%clk 0:02:53]}  b5 {[%clk 0:02:50]} 8. Bb3 {[%clk 0:02:51]}  Bb7 {[%clk 0:02:48]} 9. e4 {[%clk 0:02:50]}  cxd4 {[%clk 0:02:45]} 10. Nxd4 {[%clk 0:02:48]}  Nc6 {[%clk 0:02:44]} 11. Nxc6 {[%clk 0:02:40]}  Qxd1 {[%clk 0:02:44]} 12. Rxd1 {[%clk 0:02:40]}  Bxc6 {[%clk 0:02:44]} 13. f3 {[%clk 0:02:40]}  Bc5+ {[%clk 0:02:42]} 14. Kf1 {[%clk 0:02:32]}  O-O {[%clk 0:02:40]} 15. Bf4 {[%clk 0:02:29]}  Rfc8 {[%clk 0:02:38]} 16. Rac1 {[%clk 0:02:23]}  Be7 {[%clk 0:02:32]} 17. Ne2 {[%clk 0:02:14]}  Bb7 {[%clk 0:02:28]} 18. g4 {[%clk 0:01:52]}  Rxc1 {[%clk 0:02:26]} 19. Nxc1 {[%clk 0:01:25]}  Rd8 {[%clk 0:02:25]} 20. Nd3 {[%clk 0:01:17]}  Nd7 {[%clk 0:02:19]} 21. Rc1 {[%clk 0:01:14]}  Rc8 {[%clk 0:02:18]} 22. Rxc8+ {[%clk 0:01:12]}  Bxc8 {[%clk 0:02:19]} 23. a4 {[%clk 0:01:12]}  bxa4 {[%clk 0:02:17]} 24. Bxa4 {[%clk 0:01:11]}  Nc5 {[%clk 0:02:18]} 25. Nxc5 {[%clk 0:01:08]}  Bxc5 {[%clk 0:02:18]} 26. Ke2 {[%clk 0:01:07]}  Kf8 {[%clk 0:02:16]} 27. Kd3 {[%clk 0:01:00]}  Ke7 {[%clk 0:02:09]} 28. h4 {[%clk 0:00:57]}  Bd7 {[%clk 0:02:03]} 29. Bxd7 {[%clk 0:00:46]}  Kxd7 {[%clk 0:02:04]} 30. Kc4 {[%clk 0:00:45]}  Kc6 {[%clk 0:02:04]} 31. Be5 {[%clk 0:00:43]}  g6 {[%clk 0:02:04]} 32. h5 {[%clk 0:00:40]}  Be7 {[%clk 0:02:00]} 33. b4 {[%clk 0:00:38]}  Bf8 {[%clk 0:01:58]} 1/2-1/2


[Site "https://www.chess.com"]